Cogmind - Beta 13 @@@ ROGUE MODE // 2024.05.27 @ 22:36:04 Player: H3-RMN Result: Destroyed self with Subdweller Shrapnel Launcher Performance ------------- Evolutions (0) 0 Regions Visited (2) 400 Robots Destroyed (40) 200 Value Destroyed (1126) 1126 Prototype IDs (3) 60 Alien Tech Used (0) 0 Bonus (0) 0 TOTAL SCORE: 1786 Bonus ------- None Cogmind --------- Core Integrity 0/250 Matter 118/300 Energy 199/200 System Corruption 0% Temperature Cool (0) Movement Rolling (120) Ox1 Location -10/Subcaves Parts ------- > --- POWER (1) -------- Subdweller Power Source > --- PROPULSION (2) --- Subdweller Monowheel Subdweller Monowheel > --- UTILITY (2) ------ Large Storage Unit Makeshift Light Armor Plating > --- WEAPON (2) ------- Subdweller Machine Gun Subdweller Shrapnel Launcher > --- INVENTORY (15) --- Wheel Subdweller Monowheel Subdweller Monowheel High-capacity Matter Pod (200) Structural Scanner Makeshift Light Armor Plating Hacking Suite Recalibrator Battle Rifle Battle Rifle Subdweller Machine Gun Light Cannon Grenade Launcher Datajack Ripper Peak State ------------ > --- POWER ------------ Subdweller Power Source > --- PROPULSION ------- Subdweller Monowheel Subdweller Monowheel > --- UTILITY ---------- Large Storage Unit Makeshift Light Armor Plating > --- WEAPON ----------- Subdweller Machine Gun Ripper > --- INVENTORY -------- Subdweller Power Source Wheel Subdweller Monowheel Subdweller Monowheel High-capacity Matter Pod Structural Scanner Hacking Suite Recalibrator Battle Rifle Battle Rifle Subdweller Machine Gun Light Cannon Grenade Launcher Subdweller Shrapnel Launcher Datajack [Rating: 19] Favorites ----------- Power Ion Engine Engine Ion Engine Power Core Light Nuclear Core Propulsion Light Treads Treads Light Treads Wheel Wheel Utility Seismic Detector Device Seismic Detector Storage Large Storage Unit Protection Makeshift Light Armor Plating Weapon Assault Rifle Energy Cannon Beam Cannon Ballistic Gun Assault Rifle Launcher Grenade Launcher Slashing Weapon Ripper Build | -11 -10 -10 ------- Run | Yrd Mat Sub Slots Evolved . | . . . Power . | . . . Propulsion . | . . . Utility . | . . . Weapon . | . . . Parts Attached 49 | 7 5 37 Power 5 | 1 1 3 Engine 4 | 1 . 3 Core 1 | . 1 . Reactor . | . . . Propulsion 10 | 2 . 8 Treads 3 | 1 . 2 Leg . | . . . Wheel 7 | 1 . 6 Hover . | . . . Flight . | . . . Utility 13 | 2 2 9 Device 8 | 1 . 7 Storage 3 | 1 2 . Processor . | . . . Hackware . | . . . Protection 2 | . . 2 Artifact . | . . . Weapon 21 | 2 2 17 Energy Gun . | . . . Energy Cannon 1 | . . 1 Ballistic Gun 16 | 2 1 13 Ballistic Cannon . | . . . Launcher 3 | . 1 2 Special Weapon . | . . . Impact Weapon . | . . . Slashing Weapon 1 | . . 1 Piercing Weapon . | . . . Special Melee Weapon . | . . . Unidentified Prototypes . | . . . Parts Lost 8 | . . 8 Power 1 | . . 1 Propulsion 4 | . . 4 Utility 1 | . . 1 Weapon 2 | . . 2 Highest Loss Streak 3 | . . 3 To Critical Strikes . | . . . Average Slot Usage (%) 99 | . 100 99 Engine 11 | . 11 11 Core 2 | . 2 1 Treads 12 | . 14 11 Wheel 14 | . 14 16 Device 12 | . 14 10 Storage 14 | . 14 14 Protection 1 | . . 3 Ballistic Gun 26 | . 27 24 Naked Turns . | . . . Heaviest Build 41 | 14 29 41 Greatest Support 40 | 10 10 40 Greatest Overweight (x) 3 | 1 2 3 Average Overweight (x) 1 | . 1 1 Largest Inventory Capacity 15 | 8 15 15 Average Capacity 12 | 7 10 15 Most Carried 15 | 5 15 15 Average Carried 11 | 2 9 14 Final Capacity 15 | 8 15 15 Final Carried 15 | 5 15 15 Class Distribution -------------------- 77% | Mutant 22% | Scavenger-Mutant Dominant Class ---------------- Mutant | -10/Materials Scavenger-Mutant | -10/Subcaves Resources | -11 -10 -10 ----------- Run | Yrd Mat Sub Matter Collected 1361 | 298 428 635 Remotely . | . . . Salvage Created 1412 | 135 549 728 Parts 89 | 5 37 47 Haulers Intercepted 1 | . 1 . Recyclers Shooed 1 | . 1 . Parts Field Recycled . | . . . Retrieved Matter . | . . . Parts Self-Destructed 5 | . . 5 Prevented . | . . . Kills | -11 -10 -10 ------- Run | Yrd Mat Sub Combat Hostiles Destroyed 31 | . 11 20 Melee 1 | . . 1 Guns 18 | . 8 10 Cannons 2 | . . 2 AOE 10 | . 3 7 Classes Destroyed 12 | 2 7 3 Builder 1 | . 1 . Tunneler 2 | 2 . . Hauler 1 | . 1 . Recycler 2 | 1 1 . Mechanic 1 | . 1 . Operator 1 | . 1 . Watcher 1 | . 1 . Swarmer 6 | . 3 3 Grunt 8 | . 8 . Artisan 1 | . . 1 Cobbler 1 | . . 1 Subdweller 17 | . . 17 Best Kill Streak 6 | 3 6 5 Combat Bots Only 6 | . 6 5 Max Kills in Single Turn 3 | 1 3 2 Gunslinging . | . . . Exploded 2 | . 2 2 Melee 1 | . . 1 Uniques/NPCs Destroyed . | . . . Combat | -11 -10 -10 -------- Run | Yrd Mat Sub Hostile Shots Fired 117 | . 34 83 Missed 28 | . 7 21 Damage Taken 1746 | . 368 1378 Core 252 | . 41 211 Absorbed by Shields . | . . . Core Remaining (%) 100 | 100 . . Volleys Fired 148 | 7 41 100 Largest 2 | 2 2 2 Hottest 90 | 40 40 90 Shots Fired 275 | 14 79 182 Gun 247 | 14 76 157 Cannon 17 | . . 17 Launcher 11 | . 3 8 Special . | . . . Kinetic 253 | 14 76 163 Thermal 17 | . . 17 Explosive 5 | . 3 2 Electromagnetic . | . . . Robot Hit Streak 23 | 5 13 23 Robot Miss Streak 3 | 2 2 3 Penetration Max . | . . . Secondary Targets 1 | . 1 . Max Gunslinging Chain 1 | . 1 . Shots Hit Robots 186 | 9 53 124 Core Hits 81 | 5 31 45 Critical Kills 1 | . 1 . Critical Parts Destroyed . | . . . Critical Strikes 6 | . 1 5 Destroy 6 | . 1 5 Melee Attacks 2 | . . 2 Impact . | . . . Slashing 2 | . . 2 Piercing . | . . . Sneak Attacks 1 | . . 1 Combat Hostiles . | . . . Follow-up Attacks . | . . . Damage Inflicted 3695 | 118 797 2780 Guns 2482 | 118 583 1781 Cannons 229 | . . 229 Explosions 859 | . 214 645 Melee 125 | . . 125 Ramming . | . . . Kinetic 2965 | 118 583 2264 Thermal 229 | . . 229 Explosive 376 | . 214 162 Electromagnetic . | . . . Impact . | . . . Slashing 125 | . . 125 Piercing . | . . . Highest Corruption . | . . . Average Corruption . | . . . Corruption Purged . | . . . Corruption Blocked . | . . . Overload Shots . | . . . Overflow Damage . | . . . Projectiles . | . . . Explosions . | . . . Melee . | . . . Knockbacks . | . . . Impact . | . . . Kinetic . | . . . Secondary . | . . . Self-Inflicted Damage 153 | . 42 111 Shots 5 | . 2 3 Rammed . | . . . Targets Rammed . | . . . Kicked . | . . . Crushed . | . . . Highest Temperature 20 | . 20 . Average Temperature 6 | . 6 . Received Heat Transfer 429 | . 162 267 Siege Activations . | . . . Robots Corrupted . | . . . Combat Hostiles . | . . . Parts Fried . | . . . Impact Corruptions . | . . . Robots Melted . | . . . Combat Hostiles . | . . . Parts Melted 3 | . . 3 Heat Transferred 481 | . . 481 Parts Sabotaged . | . . . Parts Stolen . | . . . Parts Stripped . | . . . Power Chain Reactions . | . . . Alert | -11 -10 -10 ------- Run | Yrd Mat Sub Peak Influence 201 | 15 201 . Initial 9 | . 9 . Average 56 | 3 59 . Maximum Alert Level 1 | . 1 . Low Security (%) 96 | 100 95 . Level 1 3 | . 4 . Level 2 . | . . . Level 3 . | . . . Level 4 . | . . . Level 5 . | . . . High Security . | . . . Max Security . | . . . Squads Dispatched 2 | . 2 . Investigation 1 | . 1 . Extermination . | . . . Reinforcement 1 | . 1 . Assault . | . . . Garrison . | . . . Intercept . | . . . Searches Triggered . | . . . Construction Impeded . | . . . Haulers Reinforced . | . . . Active Scanning Responses . | . . . Cargo Convoy Interrupts . | . . . Stealth | -11 -10 -10 --------- Run | Yrd Mat Sub Distress Signals 1 | . 1 . Communications Jammed . | . . . Distress Signals . | . . . Times Spotted 41 | . 20 21 Peak Tracking Total 4 | . 4 3 Tactical Retreats . | . . . Traps | -11 -10 -10 ------- Run | Yrd Mat Sub Traps Triggered . | . . . Indirectly . | . . . Trap Hack Attempts . | . . . Triggered . | . . . Disarmed . | . . . Reprogrammed 5 | . 5 . Reused . | . . . Traps Extracted . | . . . Installed 1 | . . 1 Triggered . | . . . Machines | -11 -10 -10 ---------- Run | Yrd Mat Sub Machines Disabled 1 | . 1 . Max in Single Turn 1 | . 1 . Machines Repaired . | . . . Machines Dismantled . | . . . Machines Sabotaged . | . . . Overloaded Fab Kills . | . . . Hacking | -11 -10 -10 --------- Run | Yrd Mat Sub Machines Accessed 7 | . 7 . Terminals 5 | . 5 . Fabricators . | . . . Repair Stations 1 | . 1 . Recycling Units 1 | . 1 . Scanalyzers . | . . . Garrison Access . | . . . Total Hacks 31 | . 31 . Successful 15 | . 15 . Failed 15 | . 15 . Catastrophic 3 | . 3 . Database Lockouts 1 | . 1 . Manual 12 | . 12 . Terminals 25 | . 25 . Fabricators . | . . . Repair Stations 4 | . 4 . Recycling Units 2 | . 2 . Scanalyzers . | . . . Garrison Access . | . . . Terminal Hacks 9 | . 9 . Robot Analysis 3 | . 3 . Prototype ID Bank 2 | . 2 . Terminal Index 1 | . 1 . Locate Traps 1 | . 1 . Reprogram Traps 1 | . 1 . Zone Layout 1 | . 1 . Fabricator Hacks . | . . . Repair Station Hacks 1 | . 1 . Refit 1 | . 1 . Recycling Unit Hacks 1 | . 1 . Report Inventory 1 | . 1 . Scanalyzer . | . . . Garrison Access Hacks . | . . . Unauthorized Hacks 4 | . 4 . Terminals 3 | . 3 . Track 1 | . 1 . Botnet 1 | . 1 . Operators 1 | . 1 . Fabricators . | . . . Repair Stations . | . . . Recycling Units 1 | . 1 . Tunnel 1 | . 1 . Scanalyzers . | . . . Garrison Access . | . . . Data Cores Recovered . | . . . Used . | . . . Hacking Detections 5 | . 5 . Full Trace Events 1 | . 1 . Feedback Events . | . . . Feedback Blocked . | . . . Robot Schematics Acquired . | . . . Robots Built . | . . . Authchips . | . . . Time . | . . . Total Robot Build Rating . | . . . Part Schematics Acquired . | . . . Parts Built . | . . . Authchips . | . . . Time . | . . . Total Part Build Rating . | . . . Parts Repaired . | . . . Time . | . . . Parts Recycled . | . . . Recycled Matter . | . . . Retrieved Matter . | . . . Retrieved Components . | . . . Parts Scanalyzed . | . . . Part Schematics Acquired . | . . . Parts Damaged . | . . . Bothacking | -11 -10 -10 ------------ Run | Yrd Mat Sub Used RIF Installer . | . . . Robots Hacked . | . . . Non-combat . | . . . Combat . | . . . Robot Hacks Applied . | . . . Relay Couplers Released . | . . . Fabnet Peak Effective % . | . . . Robots Rewired . | . . . Allies Hacked . | . . . Hacks Repelled . | . . . Allies | -11 -10 -10 -------- Run | Yrd Mat Sub Total Allies . | . . . Largest Group . | . . . Highest-Rated Group . | . . . Highest-Rated Ally . | . . . Total Orders . | . . . Ally Attacks . | . . . Total Damage . | . . . Kills . | . . . Allies Corrupted . | . . . Allies Melted . | . . . Intel | -11 -10 -10 ------- Run | Yrd Mat Sub Robot Analysis Total 3 | . 3 . Derelict Logs Recovered . | . . . Drone Launches . | . . . Drone Recoveries . | . . . Exploration | -11 -10 -10 ------------- Run | Yrd Mat Sub Turns Passed 3361 | 94 1798 1469 Spaces Moved 1581 | 65 611 905 Core 1 | 1 . . Treads 2 | . . 2 Legs . | . . . Wheels 1578 | 64 611 903 Hover . | . . . Flight . | . . . Fastest Speed 50 | 50 95 110 Average Speed 110 | 89 102 117 Slowest Speed 240 | 95 110 240 Overloaded Moves . | . . . Propulsion Burnouts . | . . . Robots Hopped . | . . . Cave-ins Triggered . | . . . Exploration Rate (%) 47 | 4 86 53 Regions Visited 2 Branch Regions 1 Pre-discovered Areas 2 | . 1 1 Known Exits Taken . | . . . Unknown Exits Taken 2 | 1 1 . Scrap Searched 7 | . . 7 Spaces Dug 22 | . 6 16 Terrain Destroyed 87 | . 8 79 Melee . | . . . Projectile . | . . . AOE 87 | . 8 79 Terrain Rammed . | . . . Walls Destroyed . | . . . Machines Disabled . | . . . Actions | -11 -10 -10 --------- Run | Yrd Mat Sub Total 2922 | 84 1714 1124 Wait 1093 | 1 1041 51 Move 1579 | 64 610 905 Hop . | . . . Pick Up 26 | 5 12 9 Fast Attach 15 | 7 . 8 Attach 4 | . . 4 Detach . | . . . Swap 30 | . 5 25 Drop 24 | . 5 19 Fire 148 | 7 41 100 Melee 2 | . . 2 Ram . | . . . Kick . | . . . Crush . | . . . Escape Stasis . | . . . Rewire . | . . . Trap 1 | . . 1 Miscellaneous . | . . . Route ------- -11/Scrapyard -10/Materials (discovered 6 exits: [*Mat x3] / [*Min x2] / [*Sub]) -10/Subcaves (discovered 2 exits: [*Mat x2]) History --------- Turn | Location | Event 17 | -11/Scrapyard | Discovered new exit (range 15) 95 | -11/Scrapyard | Entered Materials 120 | -10/Materials | Central database locked down 161 | -10/Materials | Discovered new exit (range 8) 309 | -10/Materials | Build established: Mutant 400 | -10/Materials | Discovered new exit (range 13) 1351 | -10/Materials | Discovered new exit (range 6) 1413 | -10/Materials | Discovered new exit (range 14) 1485 | -10/Materials | Discovered new exit (range 10) 1886 | -10/Materials | Discovered new exit (range 8) 1893 | -10/Materials | Entered Subcaves 2086 | -10/Subcaves | Lost 3 parts (1n1u1w) 2162 | -10/Subcaves | Discovered new exit (range 10) 2323 | -10/Subcaves | Discovered new exit (range 12) 2470 | -10/Subcaves | Disturbed a concealed Subdweller 2523 | -10/Subcaves | Shifting Twisted Machinery released Battle Cannon 2524 | -10/Subcaves | Shifting Twisted Machinery released Shrapnel Trap 2534 | -10/Subcaves | Build established: Scavenger-Mutant 2769 | -10/Subcaves | Core integrity fell below 50% 2916 | -10/Subcaves | Lost 3 parts (1p2n) 2965 | -10/Subcaves | Learned location of Zion (-6) 2965 | -10/Subcaves | Met a Zionite searching for "candidates" 3010 | -10/Subcaves | Disturbed a concealed Subdweller 3186 | -10/Subcaves | Build established: Mutant 3324 | -10/Subcaves | Shifting Twisted Machinery released Mak. Light Armor Plating 3330 | -10/Subcaves | Shifting Twisted Machinery released Sub. Optics 3351 | -10/Subcaves | Ambushed by Subdweller buried in earth 3353 | -10/Subcaves | Ambushed by Subdweller buried in earth 3353 | -10/Subcaves | Ambushed by Subdweller buried in earth 3354 | -10/Subcaves | Core integrity fell below 20% 3362 | -10/Subcaves | Destroyed self with Subdweller Shrapnel Launcher Last Messages --------------- 03234_ Dropped Broken Sub. Monowheel. 03235_ Acquired Sub. Monowheel. 03236_ Acquired 20 matter. 03306_ Sub. Machine Gun shoots sparks and powers down. 03318_ Sub. Machine Gun functionality restored. Mak. Light Armor Plating falls loose from the Twisted Machinery. Sub. Optics falls loose from the Twisted Machinery. 03332_ Dropped Sub. Power Source. 03333_ Acquired Mak. Light Armor Plating. 03349_ S-10 Pest destroyed. 03349_ Destroyed Lgt. Ion Engine. 03349_ S-10 Pest destroyed. 03352_ HM-6J4(R): "ARGHSUB!" 03353_ HM-6J4(R) destroyed. 03354_ C2-WET(R): "ARGHSUB!" 03354_ 3S-5SN(R): "SLEEPOVER!" 03362_ 3S-5SN(R) destroyed. Map ----- +----------------------------------------------------+ | ?????????????????????????????????????????????????? | | ?????????????????????????????????????????????????? | | ?????????????????????????????????????????????????? | | ?????????????????????????????????????????????????? | | ?????????????????????????????????????????????????? | | ?????????????????????????????????????????????????? | | ?????????????????????????????????????????????????? | | ?????????????????????????????????????????????????? | | ?????????????????????????????????????????????????? | | ???????????????????????????????????????????#####?? | | ??????????????????????????????????????????######## | | ?????????????????????????????????????????#### ### | | ?????????????????????????????????????####### ## | | ????????????????????????????????????####### ## | | ?????????????????????? ?????????????### # | | ??????????????#?????? ????????????### | | ??????????????# ???? ???????????###" | | ???????????????# ??? ???????###### " | | ????????????????# ??? ?####### ## " | | ???????????? ???# ??? ## ""# #" | | ???????????? ## ???#"" """ "" #"""### | | ???????????# ###"! """ ########## | | ??????????? # #"" "###???########### | | ??????????# # ""#?????######### | | ????????? " *"" #?????###### | | ????????? [ & @; " ##?????####### | | ?????????? % &%R ## ######??????##%#### | | ?????????????#; ! ######???????????##&%# # | | ????????????# #????????????????## # | | ????????????# #????????????????##"&# # | | ????????????# ###????????????????###]&"# | | ????????????##### #####???????????????????#####& | | ????????????????##??????????????????????????#### | | ??????????????????????????????????????????????## | | ??????????????????????????????????????????????### | | ??????????????????????????????????????????????#### | | ???????????????????????????????????????????????### | | ????????????????????????????????????????????????## | | ????????????????????????????????????????????????## | | ????????????????????????????????????????????????## | | ????????????????????????????????????????????????## | | ????????????????????????????????????????????????# | | ????????????????????????????????????????????????## | | ???????????????????????????????????????????????### | | ?????????????????????????????????????????????### | | ?????????????????????????????????????????????# | | ?????????????????????????????????????????????# | | ?????????????????????????????????????????????## | | ?????????????????????????????????????????????# # | | ????????????????????????????????????????????## # | +----------------------------------------------------+ Best States ------------- Heat Dissipation 25 Energy Generation 15 Energy Capacity 250 Matter Stores 300 Matter Capacity 300 Sight Range 21 Terrain Scan Density 10 Armor Coverage 100 Evasion (%) 44 Recoil Reduction 1 Item Schematics ----------------- None Robot Schematics ------------------ None Fabricated ------------ Nothing Alien Tech Used ----------------- None Achievements -------------- None Challenges ------------ None Game ------ Seed ColdIonNeutralizer Manual? 0 Play Time 00:21:41 Cumulative 772.5 hours Start 2024.05.27 @ 22:15:37 End 2024.05.27 @ 22:36:04 Sessions 1 Manual Loads 0 Difficulty Rogue Special Mode None Game No. 323 Rogue 293 Adventurer 3 Explorer 27 Win Type - Total 17 Types 10/3/2/1/0/1/0/0/0 Lore% 92 Gallery% 97 Achievement% 86 Wizard Run 0 Options --------- Layout 2 ASCII 0 Keyboard 0 Movement Numpad Keybinds 0 Fullscreen 2 Font 24/Smallcaps Map View 50x44 Zoom Use 0% Tactical HUD 1 Map Filters NONE Filters NONE Steam 1 RUN: e8eaffb2-7dff-46ab-8b5a-2b53fbc1fef8